Cogmind - Beta 13 *** ADVENTURER MODE // 2024.07.23 @ 19:41:59 Player: anastasia Result: Destroyed by as-28209 with Assembled Rifle Performance ------------- Evolutions (0) 0 Regions Visited (0) 0 Robots Destroyed (2) 10 Value Destroyed (59) 59 Prototype IDs (0) 0 Alien Tech Used (0) 0 Bonus (0) 0 TOTAL SCORE: 69 Bonus ------- None Cogmind --------- Core Integrity 0/250 Matter 280/300 Energy 100/100 System Corruption 6% Temperature Cool (0) Movement Walking (120) Location -11/Scrapyard Parts ------- > --- POWER (1) -------- (None) > --- PROPULSION (2) --- Aluminum Leg Aluminum Leg > --- UTILITY (2) ------ Small Storage Unit > --- WEAPON (2) ------- Light Assault Rifle > --- INVENTORY (8) ---- (None) Peak State ------------ > --- POWER ------------ Ion Engine > --- PROPULSION ------- Light Treads Light Treads > --- UTILITY ---------- Small Storage Unit > --- WEAPON ----------- Assault Rifle Mini Grenade Launcher > --- INVENTORY -------- Light Ion Engine [Rating: 7] Favorites ----------- Power Ion Engine Engine Ion Engine Propulsion Light Treads Treads Light Treads Leg Aluminum Leg Utility Small Storage Unit Storage Small Storage Unit Weapon Assault Rifle Energy Gun EM Pulse Gun Ballistic Gun Assault Rifle Launcher Mini Grenade Launcher Build | -11 ------- Run | Yrd Slots Evolved . | . Power . | . Propulsion . | . Utility . | . Weapon . | . Parts Attached 11 | 11 Power 2 | 2 Engine 2 | 2 Core . | . Reactor . | . Propulsion 4 | 4 Treads 2 | 2 Leg 2 | 2 Wheel . | . Hover . | . Flight . | . Utility 1 | 1 Device . | . Storage 1 | 1 Processor . | . Hackware . | . Protection . | . Artifact . | . Weapon 4 | 4 Energy Gun 1 | 1 Energy Cannon . | . Ballistic Gun 2 | 2 Ballistic Cannon . | . Launcher 1 | 1 Special Weapon . | . Impact Weapon . | . Slashing Weapon . | . Piercing Weapon . | . Special Melee Weapon . | . Unidentified Prototypes . | . Parts Lost 7 | 7 Power 2 | 2 Propulsion 2 | 2 Utility . | . Weapon 3 | 3 Highest Loss Streak 7 | 7 To Critical Strikes . | . Average Slot Usage (%) . | . Naked Turns . | . Heaviest Build 14 | 14 Greatest Support 40 | 40 Greatest Overweight (x) 2 | 2 Average Overweight (x) . | . Largest Inventory Capacity 8 | 8 Average Capacity 7 | 7 Most Carried 5 | 5 Average Carried . | . Final Capacity 8 | 8 Final Carried . | . Class Distribution -------------------- None Dominant Class ---------------- None Resources | -11 ----------- Run | Yrd Matter Collected 351 | 351 Remotely . | . Salvage Created 71 | 71 Parts 2 | 2 Haulers Intercepted . | . Recyclers Shooed . | . Parts Field Recycled . | . Retrieved Matter . | . Parts Self-Destructed . | . Prevented . | . Kills | -11 ------- Run | Yrd Combat Hostiles Destroyed 5 | 5 Guns 3 | 3 AOE 2 | 2 Classes Destroyed 3 | 3 Recycler 1 | 1 Demolisher 1 | 1 Assembled 4 | 4 Best Kill Streak 3 | 3 Combat Bots Only 3 | 3 Max Kills in Single Turn 1 | 1 Gunslinging . | . Exploded 1 | 1 Melee . | . Uniques/NPCs Destroyed . | . Combat | -11 -------- Run | Yrd Hostile Shots Fired 71 | 71 Missed 24 | 24 Damage Taken 1091 | 1091 Core 251 | 251 Absorbed by Shields . | . Ignored by Resistances 229 | 229 Core Remaining (%) . | . Volleys Fired 31 | 31 Largest 2 | 2 Hottest 60 | 60 Shots Fired 42 | 42 Gun 38 | 38 Cannon . | . Launcher 4 | 4 Special . | . Kinetic 32 | 32 Thermal . | . Explosive 4 | 4 Electromagnetic 6 | 6 Robot Hit Streak 4 | 4 Robot Miss Streak 2 | 2 Penetration Max . | . Secondary Targets . | . Shots Hit Robots 26 | 26 Core Hits 15 | 15 Critical Kills . | . Critical Parts Destroyed . | . Critical Strikes . | . Melee Attacks . | . Impact . | . Slashing . | . Piercing . | . Sneak Attacks . | . Combat Hostiles . | . Follow-up Attacks . | . Damage Inflicted 447 | 447 Guns 242 | 242 Cannons . | . Explosions 205 | 205 Melee . | . Ramming . | . Kinetic 191 | 191 Thermal . | . Explosive 205 | 205 Electromagnetic 51 | 51 Impact . | . Slashing . | . Piercing . | . Highest Corruption 6 | 6 Average Corruption 6 | 6 Corruption Purged . | . Corruption Blocked . | . Effects 5 | 5 Message Errors 1 | 1 Data Loss (minor) 2 | 2 Data Loss (major) 1 | 1 Misfires 1 | 1 Overload Shots . | . Overflow Damage . | . Projectiles . | . Explosions . | . Melee . | . Knockbacks . | . Impact . | . Kinetic . | . Secondary . | . Self-Inflicted Damage 17 | 17 Shots 1 | 1 Rammed . | . Targets Rammed . | . Kicked . | . Crushed . | . Highest Temperature . | . Average Temperature . | . Received Heat Transfer 20 | 20 Siege Activations . | . Robots Corrupted . | . Combat Hostiles . | . Parts Fried . | . Impact Corruptions . | . Robots Melted . | . Combat Hostiles . | . Parts Melted . | . Heat Transferred . | . Parts Sabotaged . | . Parts Stolen . | . Parts Stripped . | . Power Chain Reactions . | . Alert | -11 ------- Run | Yrd Peak Influence 35 | 35 Initial . | . Average 1 | 1 Maximum Alert Level . | . Low Security (%) 100 | 100 Level 1 . | . Level 2 . | . Level 3 . | . Level 4 . | . Level 5 . | . High Security . | . Max Security . | . Squads Dispatched . | . Investigation . | . Extermination . | . Reinforcement . | . Assault . | . Garrison . | . Intercept . | . Searches Triggered . | . Construction Impeded . | . Haulers Reinforced . | . Active Scanning Responses . | . Cargo Convoy Interrupts . | . Stealth | -11 --------- Run | Yrd Distress Signals . | . Communications Jammed . | . Distress Signals . | . Times Spotted 22 | 22 Peak Tracking Total 10 | 10 Tactical Retreats 1 | 1 Traps | -11 ------- Run | Yrd Traps Triggered . | . Indirectly . | . Trap Hack Attempts . | . Triggered . | . Disarmed . | . Reprogrammed . | . Reused . | . Traps Extracted . | . Installed . | . Triggered . | . Machines | -11 ---------- Run | Yrd Machines Disabled . | . Max in Single Turn . | . Machines Repaired . | . Machines Dismantled . | . Machines Sabotaged . | . Overloaded Fab Kills . | . Hacking | -11 --------- Run | Yrd Machines Accessed . | . Terminals . | . Fabricators . | . Repair Stations . | . Recycling Units . | . Scanalyzers . | . Garrison Access . | . Total Hacks . | . Successful . | . Failed . | . Catastrophic . | . Database Lockouts . | . Manual . | . Terminals . | . Fabricators . | . Repair Stations . | . Recycling Units . | . Scanalyzers . | . Garrison Access . | . Terminal Hacks . | . Fabricator Hacks . | . Repair Station Hacks . | . Recycling Unit Hacks . | . Scanalyzer . | . Garrison Access Hacks . | . Unauthorized Hacks . | . Terminals . | . Fabricators . | . Repair Stations . | . Recycling Units . | . Scanalyzers . | . Garrison Access . | . Data Cores Recovered . | . Used . | . Hacking Detections . | . Full Trace Events . | . Feedback Events . | . Feedback Blocked . | . Robot Schematics Acquired . | . Robots Built . | . Authchips . | . Time . | . Total Robot Build Rating . | . Part Schematics Acquired . | . Parts Built . | . Authchips . | . Time . | . Total Part Build Rating . | . Parts Repaired . | . Time . | . Parts Recycled . | . Recycled Matter . | . Retrieved Matter . | . Retrieved Components . | . Parts Scanalyzed . | . Part Schematics Acquired . | . Parts Damaged . | . Bothacking | -11 ------------ Run | Yrd Used RIF Installer . | . Robots Hacked . | . Non-combat . | . Combat . | . Robot Hacks Applied . | . Relay Couplers Released . | . Fabnet Peak Effective % . | . Robots Rewired . | . Allies Hacked . | . Hacks Repelled . | . Allies | -11 -------- Run | Yrd Total Allies . | . Largest Group . | . Highest-Rated Group . | . Highest-Rated Ally . | . Total Orders . | . Ally Attacks . | . Total Damage . | . Kills . | . Allies Corrupted . | . Allies Melted . | . Intel | -11 ------- Run | Yrd Robot Analysis Total . | . Derelict Logs Recovered . | . Drone Launches . | . Drone Recoveries . | . Exploration | -11 ------------- Run | Yrd Turns Passed 1111 | 1111 Spaces Moved 184 | 184 Core 55 | 55 Treads 120 | 120 Legs 9 | 9 Wheels . | . Hover . | . Flight . | . Fastest Speed 50 | 50 Average Speed 139 | 139 Slowest Speed 160 | 160 Overloaded Moves . | . Propulsion Burnouts . | . Robots Hopped . | . Cave-ins Triggered 1 | 1 Exploration Rate (%) 13 | 13 Regions Visited . Branch Regions . Pre-discovered Areas . | . Known Exits Taken . | . Unknown Exits Taken . | . Scrap Searched . | . Spaces Dug . | . Terrain Destroyed 17 | 17 Melee . | . Projectile . | . AOE 17 | 17 Terrain Rammed . | . Walls Destroyed . | . Machines Disabled . | . Actions | -11 --------- Run | Yrd Total 1003 | 1003 Wait 764 | 764 Move 184 | 184 Hop . | . Pick Up 12 | 12 Fast Attach . | . Attach 11 | 11 Detach . | . Swap . | . Drop 1 | 1 Fire 31 | 31 Melee . | . Ram . | . Kick . | . Crush . | . Escape Stasis . | . Rewire . | . Trap . | . Miscellaneous . | . Route ------- -11/Scrapyard (discovered 1 exit: [*Mat]) History --------- Turn | Location | Event 17 | -11/Scrapyard | Discovered new exit (range 15) 945 | -11/Scrapyard | Assembled infested the area 997 | -11/Scrapyard | Crushed by falling debris 997 | -11/Scrapyard | Core integrity fell below 50% 1038 | -11/Scrapyard | Core integrity fell below 20% 1074 | -11/Scrapyard | Lost 7 parts (2p2n3w) 1112 | -11/Scrapyard | Destroyed by as-28209 with Assembled Rifle Last Messages --------------- 01014_ Lgt. Treads destroyed. 01014_ Acquired 100 matter. 01017_ System corrupted: Substantial component data lost. 01032_ W/4B,JVEQ,HW/X357HQU69&UKPDGZDBI2 01035_ Acquired Lgt. Assault Rifle. 01037_ as-67550 destroyed. 01039_ K-01 Serf destroyed. 01042_ K-01 Serf collects debris. 01043_ Lgt. Ion Engine destroyed. 01046_ as-51129 destroyed. 01047_ System corrupted: FCS attempts to trigger Lgt. Assault Rifle. 01047_ System corrupted: Lgt. Assault Rifle misfires. 01052_ Extracted 16 matter. 01070_ Acquired Aluminum Leg. 01081_ Acquired 13 matter. 01085_ System corrupted: Component data lost. Map ----- +----------------------------------------------------+ | ???????????????# ### #????????????????????? | | ???????????????# #????????????????????? | | ???????????????# #????????????????????? | | ???????????????###### ##???????????????????? | | ???????????????????## #???????????????????? | | ??????????????????## ????????????????????? | | ??????????????????? #????????????????????? | | ???????????????????# # #????????????????????? | | ??????????????????## # # #????????????????????? | | ?????????????????## # #????????????????????? | | ?????????????????# # # #????????????????????? | | ?????????????????## #????????????????????? | | ?????????????????# ## # #????????????????? ?? | | ?????????????????# ## #????????????????? #? | | ?????????????????# ## #????????????????? #? | | ?????????????????## ##????????????????? # | | ??????????????????## #????????????????? # | | ??????????????????# # ##???????????????? ? | | ??????????????????#### #???????????????# #? | | ?????????????????????# ##???????????????# #? | | ????????????########### ## #?????????????#### ## | | ????????????# # #?############???# | | ???????????## # "#???# #???# | | ???????????# # #???# #???# | | ????????????# # a##### ##### | | ????????????# @ =%= | | ????????????# # ! | | ????????????# # ## ### = ##### ! < | | ????????????# # # #???#! | | ????????????########### #= #???######## | | ??????????????????????# #### ####??????????? | | ??????????????????????# #??# #?????????????? | | ??????????????????????# #??# #?????????????? | | ??????????????????????# #??# #?????????????? | | ??????????????????????########??# #?????????????? | | ????????????????????????????????# ?????????????? | | ????????????????????????????????# ?????????????? | | ????????????????????????????????#####????????????? | | ?????????????????????????????????????????????????? | | ?????????????????????????????????????????????????? | | ?????????????????????????????????????????????????? | | ?????????????????????????????????????????????????? | | ?????????????????????????????????????????????????? | | ?????????????????????????????????????????????????? | | ?????????????????????????????????????????????????? | | ?????????????????????????????????????????????????? | | ?????????????????????????????????????????????????? | | ?????????????????????????????????????????????????? | | ?????????????????????????????????????????????????? | | ?????????????????????????????????????????????????? | +----------------------------------------------------+ Best States ------------- Heat Dissipation 25 Energy Generation 10 Energy Capacity 250 Matter Stores 300 Matter Capacity 300 Sight Range 16 Terrain Scan Density 10 Resistance: KI 20 Resistance: TH 20 Resistance: EX 20 Resistance: EM 20 Resistance: I 20 Resistance: S 20 Resistance: P 20 Evasion (%) 50 Recoil Reduction 2 Offensive Hacking 10 Item Schematics ----------------- None Robot Schematics ------------------ None Fabricated ------------ Nothing Alien Tech Used ----------------- None Achievements -------------- Curiosity Killed The Cat Challenges ------------ None Game ------ Seed StructuralGunExtractor Manual? 0 Play Time 00:08:24 Cumulative 7.5 hours Start 2024.07.23 @ 19:37:44 End 2024.07.23 @ 19:41:59 Sessions 0 Manual Loads 0 Difficulty Adventurer Special Mode None Game No. 12 Rogue 4 Adventurer 8 Explorer 0 Win Type - Total 0 Types 0/0/0/0/0/0/0/0/0 Lore% 7 Gallery% 16 Achievement% 16 Wizard Run 0 Options --------- Layout 1 ASCII 0 Keyboard 0 Movement Mouse Keybinds 0 Fullscreen 1 Font 32/SmallcapsGlow Map View 50x35 Zoom Use 0% Tactical HUD 1 Map Filters NONE Filters NONE Steam 1 RUN: 3ff18cb2-a6e1-41e4-acdc-ea3827ae166e